Cogmind - Beta 10.2 *** ADVENTURER MODE // 2021.10.17 @ 12:29:55 Player: Disco Biscuit Result: Self-destructed Performance ------------- Evolutions (1) 500 Regions Visited (2) 400 Robots Destroyed (3) 15 Value Destroyed (126) 126 Prototype IDs (0) 0 Alien Tech Used (0) 0 Bonus (200) 200 TOTAL SCORE: 1241 Bonus ------- Pacifist 200 Cogmind --------- Core Integrity 391/400 Matter 300/300 Energy 248/250 System Corruption 0% Temperature Cool (0) Movement Rolling (90) Location -9/Materials Parts ------- > --- POWER (1) -------- Ion Engine > --- PROPULSION (3) --- Wheel Compact Wheel VTOL Module > --- UTILITY (3) ------ Improved Sensor Array Terrain Scan Processor Light Armor Plating > --- WEAPON (2) ------- Light Assault Rifle Light Assault Rifle > --- INVENTORY (4) ---- Light Ion Engine EM Pulse Gun Beam Rifle Particle Gun Peak State ------------ > --- POWER ------------ Light Ion Engine > --- PROPULSION ------- Wheel Compact Wheel VTOL Module > --- UTILITY ---------- Improved Sensor Array Terrain Scan Processor Light Armor Plating > --- WEAPON ----------- Light Assault Rifle Light Assault Rifle > --- INVENTORY -------- Light Ion Engine EM Pulse Gun [Rating: 12] Favorites ----------- Power Light Ion Engine Engine Light Ion Engine Propulsion Compact Wheel Wheel Compact Wheel Flight Unit VTOL Module Utility Terrain Scan Processor Device Improved Sensor Array Processor Terrain Scan Processor Protection Light Armor Plating Weapon Light Assault Rifle Ballistic Gun Light Assault Rifle Build | -11 -10 -9 ------- Run | Scr Mat Mat Slots Evolved 2 | . . 2 Power . | . . . Propulsion 1 | . . 1 Utility 1 | . . 1 Weapon . | . . . Parts Attached 10 | 5 . 5 Power 2 | 1 . 1 Engine 2 | 1 . 1 Core . | . . . Reactor . | . . . Propulsion 3 | 2 . 1 Treads . | . . . Leg . | . . . Wheel 2 | 2 . . Hover . | . . . Flight 1 | . . 1 Utility 3 | . . 3 Device 1 | . . 1 Storage . | . . . Processor 1 | . . 1 Hackware . | . . . Protection 1 | . . 1 Artifact . | . . . Weapon 2 | 2 . . Energy Gun . | . . . Energy Cannon . | . . . Ballistic Gun 2 | 2 . . Ballistic Cannon . | . . . Launcher . | . . . Special Weapon . | . . . Impact Weapon . | . . . Slashing Weapon . | . . . Piercing Weapon . | . . . Special Melee Weapon . | . . . Unidentified Prototypes . | . . . Parts Lost . | . . . Power . | . . . Propulsion . | . . . Utility . | . . . Weapon . | . . . Highest Loss Streak . | . . . Average Slot Usage (%) 79 | . 71 85 Engine 12 | . 14 11 Wheel 24 | . 28 22 Flight 4 | . . 8 Device 3 | . . 6 Processor 4 | . . 8 Protection 4 | . . 7 Ballistic Gun 24 | . 28 22 Naked Turns . | . . . Heaviest Build 11 | 5 5 11 Greatest Support 26 | 26 26 26 Greatest Overweight (x) . | . . . Average Overweight (x) . | . . . Largest Inventory Capacity 4 | 4 4 4 Average Capacity 4 | 4 4 4 Most Carried 4 | 4 2 4 Average Carried 2 | 1 2 2 Final Capacity 4 | 4 4 4 Final Carried 4 | 2 2 4 Class Distribution -------------------- 100% | Mutant Dominant Class ---------------- Mutant | -10/Materials Mutant | -9/Materials Resources | -11 -10 -9 ----------- Run | Scr Mat Mat Matter Collected 326 | 250 . 76 Remotely . | . . . Salvage Created 135 | . . 135 Parts 12 | . . 12 Haulers Intercepted . | . . . Recyclers Shooed . | . . . Parts Field Recycled . | . . . Retrieved Matter . | . . . Parts Self-Destructed . | . . . Prevented . | . . . Kills | -11 -10 -9 ------- Run | Scr Mat Mat Combat Hostiles Destroyed 3 | . . 3 Guns 3 | . . 3 Classes Destroyed 2 | . . 2 Grunt 2 | . . 2 Sentry 1 | . . 1 Best Kill Streak 3 | . . 3 Combat Bots Only 3 | . . 3 Max Kills in Single Turn 1 | . . 1 Gunslinging . | . . . Exploded . | . . . Melee . | . . . Uniques/NPCs Destroyed . | . . . Combat | -11 -10 -9 -------- Run | Scr Mat Mat Damage Taken 245 | . 21 224 Core 30 | . 21 9 Absorbed by Shields . | . . . Core Remaining (%) 95 | 100 91 . Volleys Fired 13 | . 1 12 Largest 2 | . 2 2 Hottest 40 | . 40 40 Shots Fired 26 | . 2 24 Gun 26 | . 2 24 Cannon . | . . . Launcher . | . . . Special . | . . . Kinetic 26 | . 2 24 Thermal . | . . . Explosive . | . . . Electromagnetic . | . . . Robot Hit Streak 15 | . 2 15 Robot Miss Streak 1 | . . 1 Penetration Max . | . . . Secondary Targets . | . . . Shots Hit Robots 23 | . 2 21 Core Hits 9 | . . 9 Critical Hits . | . . . Critical Kills . | . . . Critical Parts Destroyed . | . . . Melee Attacks . | . . . Impact . | . . . Slashing . | . . . Piercing . | . . . Sneak Attacks . | . . . Combat Hostiles . | . . . Follow-up Attacks . | . . . Damage Inflicted 182 | . 17 165 Guns 182 | . 17 165 Cannons . | . . . Explosions . | . . . Melee . | . . . Ramming . | . . . Kinetic 182 | . 17 165 Thermal . | . . . Explosive . | . . . Electromagnetic . | . . . Impact . | . . . Slashing . | . . . Piercing . | . . . Highest Corruption . | . . . Average Corruption . | . . . Corruption Purged . | . . . Overload Shots . | . . . Overflow Damage . | . . . Projectiles . | . . . Explosions . | . . . Melee . | . . . Knockbacks . | . . . Impact . | . . . Kinetic . | . . . Secondary . | . . . Self-Inflicted Damage . | . . . Shots . | . . . Rammed . | . . . Targets Rammed . | . . . Kicked . | . . . Crushed . | . . . Highest Temperature 18 | . . 18 Average Temperature 10 | . . 10 Received Heat Transfer 132 | . 15 117 Siege Activations . | . . . Robots Corrupted . | . . . Combat Hostiles . | . . . Parts Fried . | . . . Impact Corruptions . | . . . Robots Melted . | . . . Combat Hostiles . | . . . Parts Melted . | . . . Heat Transferred . | . . . Parts Sabotaged . | . . . Parts Stolen . | . . . Parts Stripped . | . . . Power Chain Reactions . | . . . Missiles Intercepted . | . . . Alert | -11 -10 -9 ------- Run | Scr Mat Mat Peak Influence 120 | . 15 120 Initial 5 | . . 5 Average 30 | . 13 47 Maximum Alert Level . | . . . Low Security (%) 100 | 100 100 100 Level 1 . | . . . Level 2 . | . . . Level 3 . | . . . Level 4 . | . . . Level 5 . | . . . High Security . | . . . Max Security . | . . . Squads Dispatched 1 | . . 1 Investigation . | . . . Extermination . | . . . Reinforcement 1 | . . 1 Assault . | . . . Garrison . | . . . Intercept . | . . . Construction Impeded . | . . . Haulers Reinforced . | . . . Stealth | -11 -10 -9 --------- Run | Scr Mat Mat Distress Signals . | . . . Communications Jammed . | . . . Distress Signals . | . . . Times Spotted 14 | . 3 11 Peak Tracking Total 5 | . 2 5 Tactical Retreats . | . . . Traps | -11 -10 -9 ------- Run | Scr Mat Mat Traps Triggered . | . . . Indirectly . | . . . Trap Hack Attempts . | . . . Triggered . | . . . Disarmed . | . . . Reprogrammed . | . . . Reused . | . . . Traps Extracted . | . . . Installed . | . . . Triggered . | . . . Machines | -11 -10 -9 ---------- Run | Scr Mat Mat Machines Disabled . | . . . Max in Single Turn . | . . . Machines Sabotaged . | . . . Garrisons Compromised . | . . . Overloaded Fab Kills . | . . . Fab Network Shutdowns . | . . . Hacking | -11 -10 -9 --------- Run | Scr Mat Mat Machines Accessed 2 | . 1 1 Terminals 2 | . 1 1 Fabricators . | . . . Repair Stations . | . . . Recycling Units . | . . . Scanalyzers . | . . . Garrison Access . | . . . Total Hacks 9 | . 4 5 Successful 4 | . 2 2 Failed 5 | . 2 3 Catastrophic . | . . . Database Lockouts . | . . . Manual 4 | . 1 3 Terminals 9 | . 4 5 Fabricators . | . . . Repair Stations . | . . . Recycling Units . | . . . Scanalyzers . | . . . Garrison Access . | . . . Terminal Hacks 1 | . 1 . Transport Status 1 | . 1 . Fabricator Hacks . | . . . Repair Station Hacks . | . . . Recycling Unit Hacks . | . . . Scanalyzer . | . . . Garrison Access Hacks . | . . . Unauthorized Hacks 3 | . 1 2 Terminals 3 | . 1 2 Assimilate 1 | . . 1 Botnet 1 | . 1 . Operators 1 | . . 1 Fabricators . | . . . Repair Stations . | . . . Recycling Units . | . . . Scanalyzers . | . . . Garrison Access . | . . . Data Cores Recovered . | . . . Used . | . . . Hacking Detections 2 | . 1 1 Full Trace Events . | . . . Feedback Events . | . . . Feedback Blocked . | . . . Robot Schematics Acquired . | . . . Robots Built . | . . . Matter . | . . . Time . | . . . Total Robot Build Rating . | . . . Part Schematics Acquired . | . . . Parts Built . | . . . Matter . | . . . Time . | . . . Total Part Build Rating . | . . . Parts Repaired . | . . . Time . | . . . Parts Recycled . | . . . Recycled Matter . | . . . Retrieved Matter . | . . . Retrieved Components . | . . . Parts Scanalyzed . | . . . Part Schematics Acquired . | . . . Parts Damaged . | . . . Bothacking | -11 -10 -9 ------------ Run | Scr Mat Mat Used RIF Installer . | . . . Robots Hacked . | . . . Non-combat . | . . . Combat . | . . . Robot Hacks Applied . | . . . Relay Couplers Released . | . . . Robots Rewired . | . . . Allies Hacked . | . . . Hacks Repelled . | . . . Allies | -11 -10 -9 -------- Run | Scr Mat Mat Total Allies 1 | . . 1 Largest Group 1 | . . 1 Highest-Rated Group 10 | . . 10 Highest-Rated Ally 10 | . . 10 Total Orders . | . . . Ally Attacks . | . . . Total Damage . | . . . Kills . | . . . Allies Corrupted . | . . . Allies Melted . | . . . Intel | -11 -10 -9 ------- Run | Scr Mat Mat Robot Analysis Total . | . . . Derelict Logs Recovered . | . . . Drone Launches . | . . . Drone Recoveries . | . . . Exploration | -11 -10 -9 ------------- Run | Scr Mat Mat Turns Passed 361 | 44 125 192 Spaces Moved 312 | 33 136 143 Core 4 | 4 . . Treads . | . . . Legs . | . . . Wheels 308 | 29 136 143 Hover . | . . . Flight . | . . . Fastest Speed 50 | 50 90 90 Average Speed 89 | 88 90 90 Slowest Speed 100 | 100 90 90 Overloaded Moves . | . . . Propulsion Burnouts . | . . . Robots Hopped . | . . . Cave-ins Triggered . | . . . Exploration Rate (%) 17 | 3 31 19 Regions Visited 2 Branch Regions . Pre-discovered Areas . | . . . Known Exits Taken . | . . . Unknown Exits Taken 2 | 1 1 . Scrap Searched . | . . . Spaces Dug . | . . . Terrain Destroyed . | . . . Melee . | . . . Projectile . | . . . AOE . | . . . Terrain Rammed . | . . . Walls Destroyed . | . . . Machines Disabled . | . . . Actions | -11 -10 -9 --------- Run | Scr Mat Mat Total 371 | 48 136 187 Wait 19 | . . 19 Move 310 | 32 135 143 Hop . | . . . Pick Up 16 | 9 . 7 Fast Attach . | . . . Attach 9 | 5 . 4 Detach . | . . . Swap 1 | . . 1 Drop 3 | 2 . 1 Fire 13 | . 1 12 Melee . | . . . Ram . | . . . Kick . | . . . Crush . | . . . Escape Stasis . | . . . Rewire . | . . . Trap . | . . . Miscellaneous . | . . . Route ------- -11/Scrapyard -10/Materials -9/Materials History --------- Turn | Location | Event 17 | -11/Scrapyard | Discovered new exit (range 15) 45 | -11/Scrapyard | Entered Materials 90 | -10/Materials | Discovered new exit (range 16) 170 | -10/Materials | Entered another Materials area 170 | -9/Materials | Evolved 2 slots: Propulsion x1, Utility x1 331 | -9/Materials | Build established: Mutant 362 | -9/Materials | Self-destructed Last Messages --------------- 00230_ Acquired Lgt. Armor Plating. 00240_ K-01 Serf collects debris. 00251_ Acquired Imp. Sensor Array. 00258_ K-01 Serf collects debris. 00279_ G-47 Trooper destroyed. 00282_ G-34 Mercenary destroyed. 00286_ K-01 Serf collects debris. 00295_ Y-45 Defender destroyed. 00301_ Acquired 59 matter. 00303_ Acquired Particle Gun. 00304_ Acquired 7 matter. 00308_ Acquired Ion Engine. 00310_ Dropped Lgt. Ion Engine. 00312_ Acquired Beam Rifle. 00314_ Acquired 10 matter. 00352_ O-16 Technician: "IFF HANDSHAKE FAILED. SECURING TERMINAL." 00356_ O-16 Technician uses terminal to summon reinforcements. 00356_ ALERT: Hostiles spotted, dispatching reinforcements to Terminal M012. 00356_ O-16 Technician locks terminal. Map ----- +----------------------------------------------------+ | | | | | | | | | | | | | | | | | ?????????????????????????????????????????????????? | | ?????????????????????????????????????????????????? | | ?????????????????????????????????????????????????? | | ?????????????????????????????????????????????????? | | ?????????????????????????????????????????????????? | | ?????????????????????????????????????????????????? | | ?????????????????????????????????????????????????? | | ?????????????????????????????????????????????????? | | ?????????????????????????????????????????????????? | | ???????????????????????######????????????????????? | | ##########?????????#??? [ #????????????????????? | | #?????????# """ #????????????????????? | | #????????# """ #????????????????????? | | """ #?????????# """ #????????????????????? | | """ ??????????# #????????????????????? | | ?"" """ ??????????# """ #????????????????????? | | ?"Y ??????????# """ #????????????????????? | | ??" = #?????????# """@ #????????????????????? | | ? #?????????# #????????????????????? | | #+######################+###########?????????????? | | ? ??????????? | | ? ??????????? | | ? ? ??????????? | | ########+##########"o## ########### ???????????? | | ??????# #?#"T## #??????????????????????? | | ??????# ! [ = #?##### #??????????????????????? | | ??????# #?????# #??????????????????????? | | ??????# #?????# #??????????????????????? | | ??????# """ """ #?????# #??????????????????????? | | ??????# """ """ #?????# #??????????????????????? | | ??????# """ """ #?????# #??????????????????????? | | ??????# #?????# #??????????????????????? | | ??????###########?????? #??????????????????????? | | ??????????????????????? ??????????????????????? | | ??????????????????????? ??????????????????????? | | ??????????????????????? ??????????????????????? | | ?????????????????????????????????????????????????? | | ?????????????????????????????????????????????????? | | ?????????????????????????????????????????????????? | | ?????????????????????????????????????????????????? | | ?????????????????????????????????????????????????? | | ?????????????????????????????????????????????????? | +----------------------------------------------------+ Best States ------------- Heat Dissipation 28 Energy Generation 10 Energy Capacity 250 Matter Stores 300 Matter Capacity 300 Sight Range 16 Robot Scan Range 13 Terrain Scan Density 85 Armor Coverage 150 Resistance: KI 20 Resistance: TH 20 Resistance: EX 20 Resistance: EM 20 Resistance: I 20 Resistance: S 20 Resistance: P 20 Evasion (%) 42 Offensive Hacking 10 Item Schematics ----------------- None Robot Schematics ------------------ None Fabricated ------------ Nothing Alien Tech Used ----------------- None Achievements -------------- None Challenges ------------ None Game ------ Seed CompositeStealthShotgun Manual? 0 Play Time 00:06:01 Cumulative 22.9 hours Start 2021.10.17 @ 12:26:06 End 2021.10.17 @ 12:29:55 Sessions 1 Manual Loads 0 Difficulty Adventurer Special Mode None Game No. 75 Rogue 60 Adventurer 15 Explorer 0 Win Type - Total 0 Types 0/0/0/0/0/0/0/0/0 Lore% 25 Gallery% 29 Achievement% 22 Wizard Run 0 Options --------- ASCII 0 Keyboard 0 Movement Numpad Keybinds 0 Fullscreen 1 Font 18/SmallcapsGlow Map View 76x50 Tactical HUD 1 Map Filters NONE Filters NONE Steam 1 RUN: 9b52bd81-e7ab-4d9c-a74d-479fb1a7d26f